bitfinex-derivatives/quotes_BTCF0:USTF0_20251023
["timestamp","ask_amount","ask_price","bid_price","bid_amount"]
[1761218375817,0.43013339,109500.0,109490.0,0.1488468]
[1761218376117,0.43013339,109500.0,109490.0,0.4710068]
[1761218376720,0.43613339,109500.0,109490.0,0.4710068]
[1761218376916,0.41167,109500.0,109490.0,0.4710068]
[1761218377218,0.40567,109500.0,109490.0,0.61989505]
[1761218377417,0.41067,109500.0,109490.0,0.61989505]
[1761218377618,0.41067,109500.0,109490.0,0.4710068]
[1761218378621,0.38786,109500.0,109490.0,0.4710068]
[1761218378920,0.38786,109500.0,109490.0,0.61989505]
[1761218379315,0.02706,109500.0,109490.0,0.98069505]
[1761218379623,0.42399,109510.0,109500.0,0.1488385]
[1761218380732,0.06319,109510.0,109500.0,0.1488385]
[1761218381034,0.21207825,109510.0,109500.0,0.1488385]
[1761218381932,0.21307825,109510.0,109500.0,0.1488385]
[1761218385229,0.30437825,109510.0,109500.0,0.1352285]
[1761218386829,0.21307825,109510.0,109500.0,0.1352285]
[1761218387235,0.30437825,109510.0,109500.0,0.1352285]
[1761218387936,0.66517825,109510.0,109500.0,0.1352284]
[1761218388138,0.68964164,109510.0,109500.0,0.1352284]
[1761218390541,0.1497067,109490.0,109480.0,0.4132851]
[1761218390840,0.65939495,109490.0,109480.0,0.4572051]
[1761218391441,0.65939495,109490.0,109480.0,0.4708151]
[1761218391633,0.5105067,109490.0,109480.0,0.4708151]
[1761218391833,0.68388431,109490.0,109480.0,0.4708151]
[1761218392034,0.68488431,109490.0,109480.0,0.4708151]
[1761218392430,0.68488431,109490.0,109470.0,0.68292]
[1761218392639,0.1504934,109470.0,109460.0,0.50698282]
[1761218392934,0.1504934,109470.0,109460.0,0.819976]
[1761218392935,0.29938165,109470.0,109460.0,0.819976]
[1761218393337,0.32387101,109470.0,109460.0,0.819976]
[1761218393740,0.32387101,109470.0,109460.0,0.8289662]
[1761218394243,0.32387101,109470.0,109460.0,0.819976]
[1761218394542,0.17498276,109470.0,109460.0,0.819976]
[1761218395144,0.17498276,109470.0,109460.0,0.82886865]
[1761218395441,0.32387101,109470.0,109460.0,0.82886865]
[1761218395641,0.1153434,109470.0,109460.0,0.84230865]
[1761218395843,0.1377634,109470.0,109460.0,0.84230865]
[1761218396344,0.1514934,109470.0,109460.0,0.84230865]
[1761218396645,0.1514934,109470.0,109460.0,0.48150865]
[1761218396840,0.30027214,109470.0,109460.0,0.48150865]
[1761218397041,0.28654214,109470.0,109460.0,0.48150865]
[1761218397344,0.1377634,109470.0,109460.0,0.48150865]
[1761218397544,0.30027214,109470.0,109460.0,0.48150865]
[1761218397750,0.28654214,109470.0,109460.0,0.48150865]
[1761218398441,0.28654214,109470.0,109460.0,0.63028739]
[1761218400253,0.30027214,109470.0,109460.0,0.472616]
[1761218400440,0.30027214,109470.0,109460.0,0.459176]
[1761218401440,0.1505018,109460.0,109450.0,0.1370248]
[1761218401640,0.1505018,109460.0,109440.0,0.13712136]
[1761218401641,0.1505101,109450.0,109440.0,0.13712136]
[1761218401951,0.29928884,109450.0,109440.0,0.45924136]
[1761218402147,0.29928884,109450.0,109440.0,0.46846615]
[1761218402651,0.29928884,109450.0,109440.0,0.48190615]
[1761218403150,0.29928884,109450.0,109440.0,0.46846615]
[1761218403849,0.02401,109450.0,109440.0,0.77946363]
[1761218404044,0.001,109450.0,109440.0,0.63068489]
[1761218404244,0.28655884,109450.0,109440.0,0.63068489]
[1761218404444,0.30028884,109450.0,109440.0,0.46846615]
[1761218404744,0.30028884,109450.0,109440.0,0.48190615]
[1761218405854,0.29928884,109450.0,109440.0,0.48190615]
[1761218406153,0.30328884,109450.0,109440.0,0.63068489]
[1761218406569,0.28955884,109450.0,109440.0,0.63068489]
[1761218407450,0.04943,109450.0,109440.0,0.63068489]
[1761218407751,0.19820874,109450.0,109440.0,0.63068489]
[1761218408066,0.28955884,109450.0,109440.0,0.63068489]
[1761218408550,0.004,109450.0,109440.0,0.77946363]
[1761218408857,0.66007214,109470.0,109460.0,0.1504618]
[1761218410153,0.66407214,109470.0,109460.0,0.1504618]
[1761218411556,0.66007214,109470.0,109460.0,0.1504618]
[1761218411755,0.66407214,109470.0,109460.0,0.1504618]
[1761218413056,0.66407214,109470.0,109460.0,0.29924054]
[1761218413557,0.66407214,109470.0,109460.0,0.1504618]
[1761218414149,0.57273874,109470.0,109460.0,0.1504618]
[1761218414356,0.66407214,109470.0,109460.0,0.4724218]
[1761218414557,0.42396,109470.0,109460.0,0.4724218]
[1761218414757,0.19820874,109470.0,109460.0,0.62120054]
[1761218415345,0.30327214,109470.0,109460.0,0.4724218]
[1761218415650,0.30327214,109470.0,109460.0,0.4589818]
[1761218415956,0.66407214,109470.0,109460.0,0.4589818]
[1761218416755,0.5152934,109470.0,109460.0,0.4589818]
[1761218416955,0.6885615,109470.0,109460.0,0.4589818]
[1761218420463,0.72135861,109470.0,109460.0,0.4589818]
[1761218422460,0.84564799,109470.0,109460.0,0.4359518]
[1761218422660,0.1482117,109460.0,109450.0,0.13751]
[1761218422851,0.50312297,109460.0,109450.0,0.45939]
[1761218423663,0.35434423,109460.0,109450.0,0.45939]
[1761218424265,0.20556549,109460.0,109450.0,0.45939]
[1761218424466,0.21631542,109460.0,109450.0,0.62147874]
[1761218424666,0.30765722,109460.0,109450.0,0.62147874]
[1761218425065,0.32454722,109460.0,109450.0,0.4727]
[1761218425659,0.32454722,109460.0,109450.0,0.45939]
[1761218426967,0.29999054,109460.0,109450.0,0.48394713]
[1761218428170,0.32454722,109460.0,109450.0,0.48394713]
[1761218429371,0.23320542,109460.0,109450.0,0.48394713]
[1761218429566,0.04598,109460.0,109450.0,1.00657587]
[1761218429772,0.19475874,109460.0,109450.0,1.00657587]
[1761218430465,0.0241,109460.0,109450.0,1.00657587]
[1761218430661,0.003,109460.0,109450.0,1.00657587]
[1761218433770,0.003,109460.0,109450.0,1.03941767]
[1761218434672,0.003,109460.0,109450.0,1.58819641]
[1761218434874,0.003,109460.0,109450.0,1.61234941]
[1761218435379,0.003,109460.0,109450.0,1.57950761]
[1761218436077,0.04512,109480.0,109470.0,0.1496534]
[1761218436278,0.21845542,109480.0,109470.0,0.6448235]
[1761218436478,0.06967668,109480.0,109470.0,1.0056235]
[1761218436678,0.04512,109480.0,109470.0,1.0056235]
[1761218436984,0.02455668,109480.0,109470.0,1.0056235]
[1761218437283,0.71710463,109490.0,109480.0,0.1496451]
[1761218438279,0.25125253,109490.0,109480.0,0.1496451]
[1761218438581,0.25525253,109490.0,109480.0,0.1496451]
[1761218438979,0.06967668,109490.0,109480.0,0.29842384]
[1761218439280,0.07370126,109490.0,109480.0,0.29842384]
[1761218439478,0.22248,109490.0,109480.0,0.29842384]
[1761218440079,0.22248,109490.0,109480.0,0.65922384]
[1761218440374,0.22248,109490.0,109480.0,0.68383988]
[1761218440375,0.004,109490.0,109480.0,0.68383988]
[1761218440772,0.59252,109500.0,109490.0,0.1496367]
[1761218440973,0.59252,109500.0,109490.0,0.4713967]
[1761218441475,0.59252,109500.0,109490.0,0.48057048]
[1761218441884,0.59352,109500.0,109490.0,0.48057048]
[1761218442176,0.74229874,109500.0,109490.0,0.48057048]
[1761218442372,0.23272,109500.0,109490.0,0.48057048]
[1761218442784,0.23272,109500.0,109490.0,0.62934922]
[1761218443284,0.20813874,109500.0,109490.0,0.62934922]
[1761218443581,0.20813874,109500.0,109490.0,0.48057048]
[1761218443883,0.23272,109500.0,109490.0,0.48057048]
[1761218444182,0.04612,109500.0,109490.0,0.48057048]
[1761218444686,0.19489874,109500.0,109490.0,0.48057048]
[1761218446881,0.21948,109500.0,109490.0,0.48057048]
[1761218447082,0.19489874,109500.0,109490.0,0.48057048]
[1761218448584,0.04612,109500.0,109490.0,0.48057048]
[1761218448774,0.19489874,109500.0,109490.0,0.48057048]
[1761218450171,0.04612,109500.0,109490.0,0.62934922]
[1761218450375,0.001,109500.0,109490.0,0.99014922]
[1761218451483,0.17816,109510.0,109490.0,1.08146592]
[1761218451683,0.001,109500.0,109490.0,0.84137048]
[1761218452777,0.001,109500.0,109490.0,0.99014922]
[1761218453681,0.22303,109510.0,109500.0,0.1500984]
[1761218453883,0.22303,109510.0,109500.0,0.29887714]
[1761218454885,0.22203,109510.0,109500.0,0.29887714]
[1761218455586,0.22303,109510.0,109500.0,0.29887714]
[1761218456288,0.07425126,109510.0,109500.0,0.29887714]
[1761218456889,0.08246711,109510.0,109500.0,0.1500984]
[1761218457083,0.13172394,109510.0,109500.0,0.1500984]
[1761218460290,0.09892683,109510.0,109500.0,0.1500984]
[1761218464290,0.0824891,109510.0,109500.0,0.1500984]
[1761218465187,0.64119282,109510.0,109500.0,0.1500984]
[1761218465388,0.49254593,109510.0,109500.0,0.1500984]
[1761218465982,0.13174593,109510.0,109500.0,0.1500984]
[1761218466689,0.13174593,109510.0,109500.0,0.5108984]
[1761218466894,0.07428928,109510.0,109500.0,0.535478]
[1761218469094,0.07428928,109510.0,109500.0,0.68412489]
[1761218469292,0.03041928,109510.0,109500.0,0.68412489]
[1761218469594,0.0058,109510.0,109500.0,0.71696671]
[1761218470785,0.0058,109510.0,109500.0,0.841034]
[1761218470985,0.0058,109510.0,109500.0,0.69238711]
[1761218471191,0.43147838,109530.0,109520.0,0.1500818]
[1761218471192,0.47643838,109530.0,109520.0,0.1500818]
[1761218471394,0.47643838,109530.0,109520.0,0.4714418]
[1761218472093,0.44361928,109530.0,109520.0,0.4714418]
[1761218473091,0.43037928,109530.0,109520.0,0.4714418]
[1761218473486,0.44397928,109530.0,109520.0,0.4714418]
[1761218474599,0.68390957,109530.0,109520.0,0.4347818]
[1761218474795,0.71672867,109530.0,109520.0,0.32136]
[1761218474996,0.56808178,109530.0,109520.0,0.36616]
[1761218475296,0.71672867,109530.0,109520.0,0.4574518]
[1761218475897,0.71672867,109530.0,109520.0,0.0448]
[1761218476097,0.71672867,109530.0,109520.0,0.36616]
[1761218476397,0.71672867,109530.0,109520.0,0.4574518]
[1761218477199,0.69210939,109530.0,109520.0,0.4574518]
[1761218482596,0.5434625,109530.0,109520.0,0.4574518]
[1761218483095,0.4385791,109530.0,109520.0,0.4705318]
[1761218483301,0.10237392,109530.0,109520.0,0.61917869]
[1761218483503,0.06955482,109530.0,109520.0,0.61917869]
[1761218483700,0.06955482,109530.0,109520.0,0.4705318]
[1761218483997,0.04774482,109530.0,109520.0,0.4705318]
[1761218484197,0.06879482,109530.0,109520.0,0.4705318]
[1761218484394,0.02459482,109530.0,109520.0,0.61917869]
[1761218486201,0.04645482,109530.0,109520.0,0.61917869]
[1761218487001,0.02459482,109530.0,109520.0,0.61917869]
[1761218487894,0.47512392,109540.0,109530.0,0.1502534]
[1761218488494,0.56639892,109540.0,109530.0,0.1502534]
[1761218489495,0.08150482,109540.0,109530.0,0.65970029]
[1761218489897,0.08150482,109540.0,109530.0,0.5110534]
[1761218490300,0.06826482,109540.0,109530.0,0.5110534]
[1761218494111,0.10108392,109540.0,109530.0,0.65970029]
[1761218494503,0.0048,109550.0,109540.0,0.05897]
[1761218494703,0.0048,109550.0,109540.0,1.00559869]
[1761218494901,0.0048,109550.0,109540.0,1.40559869]
[1761218496306,0.40668482,109570.0,109550.0,0.0912642]
[1761218496503,0.06826482,109570.0,109560.0,0.62023529]
[1761218496998,0.04588482,109570.0,109560.0,0.62023529]
[1761218497203,0.02459482,109570.0,109560.0,0.98103529]
[1761218497404,0.41821392,109580.0,109570.0,0.1502201]
[1761218497610,0.04588482,109580.0,109570.0,0.5110201]
[1761218497814,0.02129,109580.0,109570.0,0.65966699]
[1761218498017,0.07306482,109590.0,109580.0,0.1502117]
[1761218498205,0.07306482,109590.0,109580.0,0.62021859]
[1761218498611,0.07306482,109590.0,109580.0,0.4715717]
[1761218499414,0.04847,109590.0,109580.0,0.4715717]
[1761218500506,0.04847,109590.0,109580.0,0.62021859]
[1761218501313,0.04847,109590.0,109580.0,0.4715717]
[1761218502013,0.06157,109590.0,109580.0,0.4715717]
[1761218503615,0.21021689,109590.0,109580.0,0.1374817]
[1761218503807,0.21021689,109590.0,109580.0,0.4587617]
[1761218503808,0.57101689,109590.0,109580.0,0.4587617]
[1761218505318,0.66225029,109590.0,109580.0,0.4587617]
[1761218505513,0.66225029,109590.0,109580.0,0.1374817]
[1761218505715,0.66225029,109590.0,109580.0,0.4587217]
[1761218506116,0.66225029,109590.0,109580.0,0.4586817]
[1761218507009,0.68684511,109590.0,109580.0,0.4586817]
[1761218507213,0.66225029,109590.0,109580.0,0.4586817]
[1761218507717,0.68684511,109590.0,109580.0,0.4586817]
[1761218510322,0.53819822,109590.0,109580.0,0.4586817]
[1761218510521,0.68684511,109590.0,109580.0,0.4586817]
[1761218510709,0.5005034,109590.0,109580.0,0.4714117]
[1761218511724,0.5136034,109590.0,109580.0,0.4714117]
[1761218512124,0.53819822,109590.0,109580.0,0.4714117]
[1761218512515,0.52509822,109590.0,109580.0,0.4714117]
[1761218513316,0.52509822,109590.0,109580.0,0.62005859]
[1761218513517,0.52509822,109590.0,109580.0,0.4714117]
[1761218514025,0.53789822,109590.0,109580.0,0.4714117]
[1761218515425,0.53789822,109590.0,109580.0,0.4586817]
[1761218516313,0.44666482,109590.0,109580.0,0.4586817]
[1761218516517,0.43386482,109590.0,109580.0,0.4719917]
[1761218516716,0.43386482,109590.0,109580.0,0.62042124]
[1761218516924,0.40927,109590.0,109580.0,0.62042124]
[1761218518028,0.5005034,109590.0,109580.0,0.62042124]
[1761218518213,0.64893294,109590.0,109580.0,0.62042124]
[1761218518419,0.40927,109590.0,109580.0,0.62042124]
[1761218519137,0.55769954,109590.0,109580.0,0.62042124]
[1761218519824,0.57049954,109590.0,109580.0,0.4719917]
[1761218520026,0.42207,109590.0,109580.0,0.62042124]
[1761218520327,0.57049954,109590.0,109580.0,0.62042124]
[1761218520826,0.42207,109590.0,109580.0,0.62042124]
[1761218521022,0.20969954,109590.0,109580.0,0.62042124]
[1761218521429,0.30093294,109590.0,109580.0,0.62042124]
[1761218521923,0.1525034,109590.0,109580.0,0.62042124]
[1761218522117,0.19689954,109590.0,109580.0,0.62042124]
[1761218522324,0.04847,109590.0,109580.0,0.62042124]
[1761218522622,0.19689954,109590.0,109580.0,0.62042124]
[1761218522930,0.04847,109590.0,109580.0,0.62042124]
[1761218523132,0.22149436,109590.0,109580.0,0.62042124]
[1761218524421,0.06211102,109590.0,109580.0,0.63461794]
[1761218524625,0.21054056,109590.0,109580.0,0.63461794]
[1761218525126,0.33459316,109590.0,109580.0,0.63461794]
[1761218525430,0.18616362,109590.0,109580.0,0.63461794]
[1761218525633,0.33459316,109590.0,109580.0,0.63461794]
[1761218526224,0.24335966,109590.0,109580.0,0.63461794]
[1761218526424,0.09493012,109590.0,109580.0,0.63461794]
[1761218526624,0.24335966,109590.0,109580.0,0.63461794]
[1761218527021,0.21876484,109590.0,109580.0,0.78304748]
[1761218527226,0.11959213,109590.0,109580.0,0.78304748]
[1761218528035,0.11959213,109590.0,109580.0,0.63461794]
[1761218528621,0.21876484,109590.0,109580.0,0.65920474]
[1761218529022,0.0703353,109590.0,109580.0,0.80763428]
[1761218529221,0.07848374,109590.0,109580.0,1.16843428]
[1761218529433,0.09993374,109590.0,109580.0,1.16843428]
[1761218532633,0.07848374,109590.0,109580.0,1.16843428]
[1761218533032,0.09993374,109590.0,109580.0,1.16843428]
[1761218534426,0.08898025,109590.0,109580.0,1.16843428]
[1761218534830,0.32864329,109590.0,109580.0,1.02000474]
[1761218536938,0.30677768,109590.0,109580.0,1.02000474]
[1761218537437,0.21554418,109590.0,109580.0,1.02000474]
[1761218538337,0.30677768,109590.0,109580.0,1.02000474]
[1761218538529,0.06711464,109590.0,109580.0,1.02000474]
[1761218538736,0.21554418,109590.0,109580.0,1.02000474]
[1761218540638,0.30677768,109590.0,109580.0,1.02000474]
[1761218541737,0.06711464,109590.0,109580.0,1.02000474]
[1761218541938,0.21554418,109590.0,109580.0,1.16843428]
[1761218542139,0.06711464,109590.0,109580.0,1.16843428]
[1761218542442,0.58914418,109590.0,109580.0,0.5106152]
[1761218542740,0.58914418,109590.0,109580.0,0.65904474]
[1761218543639,0.44071464,109590.0,109580.0,0.65904474]
[1761218543943,0.58913978,109590.0,109580.0,0.65905395]
[1761218544447,0.68037328,109590.0,109580.0,0.65905395]
[1761218545332,0.53194374,109590.0,109580.0,0.65905395]
[1761218545532,0.68037328,109590.0,109580.0,0.65905395]
[1761218545837,0.82880282,109590.0,109580.0,0.08503271]
[1761218546141,0.70499987,109590.0,109580.0,0.3814767]
[1761218546542,0.70499987,109590.0,109580.0,0.4727185]
[1761218549341,0.65574304,109590.0,109580.0,0.4727185]
[1761218549541,0.70499987,109590.0,109580.0,0.4727185]
[1761218550141,0.65574304,109590.0,109580.0,0.4727185]
[1761218550740,0.65574304,109590.0,109580.0,0.3814767]
[1761218550939,0.65574304,109590.0,109580.0,0.0604367]
[1761218552337,0.65574304,109590.0,109580.0,0.1516785]
[1761218553242,0.5073135,109590.0,109580.0,0.1516785]
[1761218553542,0.65574304,109590.0,109580.0,0.1516785]
[1761218553841,0.65574304,109590.0,109580.0,0.15116753]
[1761218554248,0.65574304,109590.0,109580.0,0.31342707]
[1761218554833,0.65574304,109590.0,109580.0,0.16499753]
[1761218555738,0.65574304,109590.0,109580.0,0.15116753]
[1761218556844,0.5073135,109590.0,109580.0,0.15116753]
[1761218557038,0.70499987,109590.0,109580.0,0.15116753]
[1761218557841,0.46533683,109590.0,109580.0,0.15116753]
[1761218558044,0.1337134,109590.0,109580.0,0.46185661]
[1761218558247,0.1337134,109590.0,109580.0,0.31342707]
[1761218558543,0.04248,109590.0,109580.0,0.31342707]
[1761218558740,0.19090954,109590.0,109580.0,0.31342707]
[1761218559639,0.04248,109590.0,109580.0,0.31342707]
[1761218560344,0.1337134,109590.0,109580.0,0.31342707]
[1761218560642,0.28214294,109590.0,109580.0,0.31342707]
[1761218560843,0.29604294,109590.0,109580.0,0.31342707]
[1761218561040,0.65684294,109590.0,109580.0,0.31342707]
[1761218561545,0.70609977,109590.0,109580.0,0.31342707]
[1761218562146,0.65684294,109590.0,109580.0,0.31342707]
[1761218562346,0.20480954,109590.0,109580.0,0.31342707]
[1761218562546,0.22942184,109590.0,109580.0,0.31342707]
[1761218562845,0.0670923,109590.0,109580.0,0.31342707]
[1761218563146,0.21552184,109590.0,109580.0,0.31342707]
[1761218563343,0.0670923,109590.0,109580.0,0.31342707]
[1761218563543,0.1583257,109590.0,109580.0,0.31342707]
[1761218563743,0.30675524,109590.0,109580.0,0.31342707]
[1761218563947,0.1583257,109590.0,109580.0,0.31342707]
[1761218564244,0.30675524,109590.0,109580.0,0.31342707]
[1761218564431,0.24833929,109590.0,109580.0,0.31342707]
[1761218565240,0.33957269,109590.0,109580.0,0.31342707]
[1761218565836,0.24833929,109590.0,109580.0,0.31342707]
[1761218566042,0.09990975,109590.0,109580.0,0.46185661]
[1761218566935,0.0670923,109590.0,109580.0,0.84725262]
[1761218568551,0.06709487,109590.0,109580.0,0.84724586]
[1761218570341,0.02461487,109590.0,109580.0,0.84724586]
[1761218570743,0.04617487,109590.0,109580.0,0.84724586]
[1761218571036,0.02156,109590.0,109580.0,0.88008768]
[1761218574154,0.02156,109590.0,109580.0,0.84724586]
[1761218576763,0.02156,109590.0,109580.0,0.6988053]
[1761218577549,0.56789972,109600.0,109590.0,0.03428]
[1761218577746,0.56789972,109600.0,109590.0,0.39165573]
[1761218578455,0.56789972,109600.0,109590.0,0.48288913]
[1761218580155,0.56789972,109600.0,109590.0,0.4692034]
[1761218580556,0.56789972,109600.0,109590.0,0.48288249]
[1761218580957,0.56789972,109600.0,109590.0,0.4692034]
[1761218581963,0.56789972,109600.0,109590.0,0.48288357]
[1761218582146,0.47667232,109600.0,109590.0,0.4692034]
[1761218582346,0.56789742,109600.0,109590.0,0.4692034]
[1761218582552,0.56789742,109600.0,109590.0,0.48288523]
[1761218583468,0.56789742,109600.0,109590.0,0.48288713]
[1761218585261,0.47667232,109600.0,109590.0,0.48288713]
[1761218585556,0.56789742,109600.0,109590.0,0.48288713]
[1761218585961,0.47667232,109600.0,109590.0,0.48288713]
[1761218586159,0.45205745,109600.0,109590.0,0.48288713]
[1761218589955,0.46358154,109600.0,109590.0,0.63130565]
[1761218590146,0.4182414,109600.0,109590.0,0.63130565]
[1761218590357,0.41824324,109600.0,109590.0,0.6558949]
[1761218590553,0.45539683,109610.0,109600.0,0.1481951]
[1761218590757,0.45539683,109610.0,109600.0,0.31029735]
[1761218590955,0.09459683,109610.0,109600.0,0.31029735]
[1761218591164,0.09459683,109610.0,109600.0,0.16187883]
[1761218591362,0.04534,109610.0,109600.0,0.31029735]
[1761218592060,0.04534,109610.0,109600.0,0.31932805]
[1761218592559,0.04534,109610.0,109600.0,0.3439173]
[1761218592858,0.04534,109610.0,109600.0,0.7047173]
[1761218593251,0.04534,109610.0,109600.0,1.0256773]
[1761218593447,0.46019683,109630.0,109620.0,0.03428]
[1761218593647,0.41094,109630.0,109620.0,0.63124065]
[1761218593856,0.41094,109630.0,109620.0,0.48282213]
[1761218594259,0.46843683,109650.0,109640.0,0.1350518]
[1761218594468,0.41918,109650.0,109640.0,0.14873553]
[1761218594649,0.56759852,109650.0,109640.0,0.14873553]
[1761218594852,0.41918,109650.0,109640.0,0.14873553]
[1761218595052,0.56759852,109650.0,109640.0,0.14873553]
[1761218595561,0.41918,109650.0,109640.0,0.14873553]
[1761218595761,0.56759852,109650.0,109640.0,0.14873553]
[1761218596264,0.41918,109650.0,109640.0,0.14873553]
[1761218596561,0.56759852,109650.0,109640.0,0.14873553]
[1761218596968,0.61685535,109650.0,109640.0,0.14873553]
[1761218597152,0.61685535,109650.0,109640.0,0.12604553]
[1761218597749,0.61685535,109650.0,109640.0,0.14873553]
[1761218598465,0.70803885,109650.0,109640.0,0.10487553]
[1761218598762,0.70803885,109650.0,109640.0,0.01368373]
[1761218598965,0.70803885,109650.0,109640.0,0.10487553]
[1761218599265,0.70803885,109650.0,109640.0,0.01368373]
[1761218599455,0.70803885,109650.0,109640.0,0.10487553]
[1761218600160,1.28645737,109650.0,109640.0,0.01368373]
[1761218600367,1.23720054,109650.0,109640.0,0.01368373]
[1761218601159,1.30279538,109650.0,109640.0,0.01368373]
[1761218601959,0.1495884,109620.0,109610.0,0.135071]
[1761218602164,0.65880692,109620.0,109610.0,0.135071]
[1761218603064,0.65880692,109620.0,109610.0,0.112381]
[1761218603366,0.65880692,109620.0,109610.0,0.135141]
[1761218605757,0.65880692,109620.0,109610.0,0.04393]
[1761218605954,0.1500667,109610.0,109600.0,0.456779]
[1761218606264,0.1500783,109600.0,109590.0,0.1355123]
[1761218606460,0.65929682,109600.0,109590.0,0.1355123]
[1761218607473,0.65929682,109600.0,109590.0,0.1132823]
[1761218607661,0.65929682,109600.0,109590.0,0.1355123]
[1761218613470,0.56806852,109600.0,109590.0,0.1355123]
[1761218613969,0.56806852,109600.0,109590.0,0.14970014]
[1761218614563,0.65929362,109600.0,109590.0,0.14970014]
[1761218614759,0.40593,109600.0,109590.0,0.16291477]
[1761218614961,0.04513,109600.0,109590.0,0.31133329]
[1761218615170,0.1363551,109600.0,109590.0,0.16291477]
[1761218615369,0.5108751,109600.0,109590.0,0.14977477]
[1761218615570,0.05885,109600.0,109590.0,0.14977477]
[1761218615759,0.04513,109600.0,109590.0,0.16291477]
[1761218615960,0.40593,109610.0,109600.0,0.091225]
[1761218616172,0.40593,109610.0,109600.0,0.31132599]
[1761218616970,0.4971467,109610.0,109600.0,0.31132599]
[1761218617566,0.40593,109610.0,109600.0,0.16290747]
[1761218618462,0.40593,109610.0,109600.0,0.48430747]
[1761218618874,0.4971467,109610.0,109600.0,0.48430747]
[1761218619571,0.40593,109610.0,109600.0,0.48430747]
[1761218621672,0.04513,109610.0,109600.0,0.48430747]
[1761218624185,0.1363469,109610.0,109600.0,0.48430747]
[1761218624478,0.5108669,109610.0,109600.0,0.50889672]
[1761218624668,0.5108669,109610.0,109600.0,0.48430747]
[1761218625377,0.5108669,109610.0,109600.0,0.50889672]
[1761218626275,0.65928542,109610.0,109600.0,0.48430747]
[1761218626470,0.5108669,109610.0,109600.0,0.50889672]
[1761218627274,0.65928542,109610.0,109600.0,0.50889672]
[1761218627970,0.56806852,109610.0,109600.0,0.50889672]
[1761218628183,0.65928532,109610.0,109600.0,0.50889672]
[1761218628474,0.5108668,109610.0,109600.0,0.50889672]
[1761218629375,0.41965,109610.0,109600.0,0.50889672]
[1761218629775,0.04513,109610.0,109600.0,0.50889672]
[1761218630463,0.04513,109610.0,109600.0,0.65731524]
[1761218630664,0.43864882,109620.0,109610.0,0.1486368]
[1761218630874,0.04513,109620.0,109610.0,0.31131779]
[1761218631271,0.04513,109620.0,109610.0,0.16289927]
[1761218631578,0.04513,109620.0,109610.0,0.31131779]
[1761218632873,0.04513,109620.0,109610.0,0.33590704]
[1761218633375,0.023,109620.0,109610.0,0.33590704]
[1761218633679,0.023,109620.0,109610.0,0.69670704]
[1761218635373,0.023,109620.0,109610.0,0.67211779]
[1761218635676,0.49775932,109630.0,109610.0,0.76333459]
[1761218635874,0.54385932,109630.0,109620.0,0.4710485]
[1761218636079,0.45265882,109630.0,109620.0,0.48531097]
[1761218636683,0.54385902,109630.0,109620.0,0.48531097]
[1761218637780,0.45265882,109630.0,109620.0,0.48531097]
[1761218638782,0.6009944,109630.0,109620.0,0.63364655]
[1761218638981,0.6009944,109630.0,109620.0,0.64284054]
[1761218639482,0.6921946,109630.0,109620.0,0.64284054]
[1761218640483,0.6921946,109630.0,109620.0,0.49450496]
[1761218640675,0.6921946,109630.0,109620.0,0.64284054]
[1761218644190,0.6921946,109630.0,109620.0,0.44933097]
[1761218644385,0.6921946,109630.0,109620.0,0.47142097]
[1761218645076,0.74124836,109630.0,109620.0,0.61975655]
[1761218645280,0.74124836,109630.0,109620.0,0.03688247]
[1761218645587,0.74124836,109630.0,109620.0,0.44917097]
[1761218646084,0.74124836,109630.0,109620.0,0.47126097]
[1761218646985,0.70852954,109630.0,109620.0,0.47126097]
[1761218647388,0.70852954,109630.0,109620.0,0.15018097]
[1761218649389,0.54393795,109630.0,109620.0,0.31240655]
[1761218649587,0.69227353,109630.0,109620.0,0.31240655]
[1761218650786,0.54393795,109630.0,109620.0,0.31240655]
[1761218651083,0.69227353,109630.0,109620.0,0.31240655]
[1761218651689,0.69227353,109630.0,109620.0,0.15018097]
[1761218653090,0.69227353,109630.0,109620.0,0.29851655]
[1761218654090,0.54393795,109630.0,109620.0,0.29851655]
[1761218654287,0.69227353,109630.0,109620.0,0.29851655]
[1761218654488,0.69227353,109630.0,109620.0,0.31240655]
[1761218654886,0.54393795,109630.0,109620.0,0.31240655]
[1761218655082,0.69227353,109630.0,109620.0,0.31240655]
[1761218655991,0.54393795,109630.0,109620.0,0.31240655]
[1761218656191,0.69227353,109630.0,109620.0,0.31240655]
[1761218656491,0.54393795,109630.0,109620.0,0.31240655]
[1761218656679,0.54393795,109630.0,109620.0,0.46074213]
[1761218656882,0.54393795,109630.0,109620.0,0.31240655]
[1761218657083,0.43150128,109630.0,109620.0,0.46074213]
[1761218657488,0.46429903,109630.0,109620.0,0.46074213]
[1761218657689,0.46429903,109630.0,109620.0,0.16407097]
[1761218657883,0.46429903,109630.0,109620.0,0.46074213]
[1761218659488,0.55549923,109630.0,109620.0,0.48533138]
[1761218662890,0.46429903,109630.0,109620.0,0.48533138]
[1761218663998,0.55549913,109630.0,109620.0,0.48533138]
[1761218664192,0.46429903,109630.0,109620.0,0.48533138]
[1761218665293,0.55549913,109630.0,109620.0,0.48533138]
[1761218665500,0.46429903,109630.0,109620.0,0.48533138]
[1761218666895,0.43150128,109630.0,109620.0,0.48533138]
[1761218667101,0.52270138,109630.0,109620.0,0.48533138]
[1761218667500,0.53650138,109630.0,109620.0,0.48533138]
[1761218668002,0.53650138,109630.0,109620.0,0.17477022]
[1761218668208,0.53650138,109630.0,109620.0,0.3231058]
[1761218671717,0.68483696,109630.0,109620.0,0.3231058]
[1761218673605,0.53650138,109630.0,109620.0,0.3231058]
[1761218673804,0.68483696,109630.0,109620.0,0.3231058]
[1761218675214,0.68483696,109630.0,109620.0,0.3010158]
[1761218675514,0.46429903,109630.0,109620.0,0.63199655]
[1761218675715,0.08450128,109630.0,109620.0,0.80492138]
[1761218675913,0.0599,109630.0,109620.0,0.8377632]
[1761218676418,0.0599,109630.0,109620.0,0.8245932]
[1761218676712,0.0599,109630.0,109620.0,0.67625762]
[1761218676919,0.0599,109630.0,109620.0,0.8245932]
[1761218677114,0.0599,109630.0,109620.0,0.67625762]
[1761218677816,0.0599,109630.0,109620.0,0.65166837]
[1761218678012,0.0599,109630.0,109620.0,0.80000395]
[1761218678218,0.0599,109630.0,109620.0,0.82458978]
[1761218678619,0.0599,109630.0,109620.0,0.80000395]
[1761218680317,0.1511002,109630.0,109620.0,0.80000395]
[1761218680512,0.1511002,109630.0,109620.0,0.65166837]
[1761218680717,0.0599,109630.0,109620.0,0.80000395]
[1761218681020,0.1511002,109630.0,109620.0,0.80000395]
[1761218681522,0.1511002,109630.0,109620.0,0.65166837]
[1761218682025,0.0599,109630.0,109620.0,0.65166837]
[1761218682224,0.0599,109630.0,109620.0,0.80000395]
[1761218682922,0.1511002,109630.0,109620.0,0.80000395]
[1761218683123,0.1511002,109630.0,109620.0,0.65166837]
[1761218685024,0.0599,109630.0,109620.0,0.65166837]
[1761218685226,0.17570158,109630.0,109620.0,0.65166837]